Cogmind - Beta 14 @@@ ROGUE MODE // 2024.08.11 @ 13:04:28 Player: LU-1G1 Result: Destroyed by S-10 Pest with Light Assault Rifle Performance ------------- Evolutions (0) 0 Regions Visited (1) 200 Robots Destroyed (22) 110 Value Destroyed (497) 497 Prototype IDs (0) 0 Alien Tech Used (0) 0 Bonus (0) 0 TOTAL SCORE: 807 Bonus ------- None Cogmind --------- Core Integrity 0/250 Matter 295/300 Energy 24/100 System Corruption 0% Temperature Cool (33) Movement Treading (160) Location -10/Materials Parts ------- > --- POWER (1) -------- (None) > --- PROPULSION (2) --- Light Treads Wheel > --- UTILITY (2) ------ Improved Heat Sink Small Storage Unit > --- WEAPON (2) ------- Beam Cannon > --- INVENTORY (8) ---- Ion Engine Wheel Seismic Detector Transport Network Coupler Datajack Peak State ------------ > --- POWER ------------ Light Ion Engine > --- PROPULSION ------- Light Treads Light Treads > --- UTILITY ---------- Small Storage Unit Seismic Detector > --- WEAPON ----------- Medium Laser Beam Cannon > --- INVENTORY -------- Ion Engine Aluminum Leg Aluminum Leg Wheel Wheel Improved Heat Sink Transport Network Coupler Datajack [Rating: 8] Favorites ----------- Power Light Ion Engine Engine Light Ion Engine Propulsion Light Treads Treads Light Treads Wheel Wheel Utility Small Storage Unit Device Seismic Detector Storage Small Storage Unit Weapon Assault Rifle Energy Gun Medium Laser Energy Cannon Beam Cannon Ballistic Gun Assault Rifle Build | -11 -10 ------- Run | Yrd Mat Slots Evolved . | . . Power . | . . Propulsion . | . . Utility . | . . Weapon . | . . Parts Attached 12 | 7 5 Power 1 | 1 . Engine 1 | 1 . Core . | . . Reactor . | . . Propulsion 4 | 2 2 Treads 3 | 2 1 Leg . | . . Wheel 1 | . 1 Hover . | . . Flight . | . . Utility 3 | 2 1 Device 2 | 1 1 Storage 1 | 1 . Processor . | . . Hackware . | . . Protection . | . . Artifact . | . . Weapon 4 | 2 2 Energy Gun 1 | . 1 Energy Cannon 1 | . 1 Ballistic Gun 2 | 2 . Ballistic Cannon . | . . Launcher . | . . Special Weapon . | . . Impact Weapon . | . . Slashing Weapon . | . . Piercing Weapon . | . . Special Melee Weapon . | . . Unidentified Prototypes . | . . Parts Lost 6 | . 6 Power 1 | . 1 Propulsion 2 | . 2 Utility . | . . Weapon 3 | . 3 Highest Loss Streak 4 | . 4 To Critical Strikes . | . . Average Slot Usage (%) 98 | . 98 Engine 13 | . 13 Treads 26 | . 26 Device 14 | . 14 Storage 14 | . 14 Energy Gun 7 | . 7 Energy Cannon 5 | . 5 Ballistic Gun 13 | . 13 Peak Build Rating 8 | 7 8 Average Rating 6 | 5 7 On Entrance 3 | . 7 Naked Turns . | . . Heaviest Build 14 | 13 14 Greatest Support 40 | 40 40 Greatest Overweight (x) 2 | 2 1 Average Overweight (x) . | . . Largest Inventory Capacity 8 | 8 8 Average Capacity 7 | 7 8 Most Carried 8 | 6 8 Average Carried 6 | 5 6 Final Capacity 8 | 8 8 Final Carried 6 | 6 5 Class Distribution -------------------- 100% | Mutant Dominant Class ---------------- Mutant | -10/Materials Resources | -11 -10 ----------- Run | Yrd Mat Matter Collected 589 | 353 236 Remotely . | . . Salvage Created 681 | 137 544 Parts 39 | 12 27 Haulers Intercepted 1 | . 1 Recyclers Shooed 1 | . 1 Parts Field Recycled . | . . Retrieved Matter . | . . Parts Self-Destructed . | . . Prevented . | . . Kills | -11 -10 ------- Run | Yrd Mat Combat Hostiles Destroyed 14 | . 14 Guns 11 | . 11 Cannons 3 | . 3 Classes Destroyed 8 | 3 5 Worker 2 | 2 . Tunneler 2 | 2 . Hauler 1 | . 1 Recycler 1 | 1 . Operator 1 | . 1 Watcher 1 | . 1 Swarmer 2 | . 2 Grunt 12 | . 12 Best Kill Streak 5 | 3 5 Combat Bots Only 5 | . 5 Max Kills in Single Turn 2 | 2 1 Gunslinging . | . . Exploded . | . . Melee . | . . Uniques/NPCs Destroyed . | . . Combat | -11 -10 -------- Run | Yrd Mat Hostile Shots Fired 149 | . 149 Missed 38 | . 38 Damage Taken 1112 | . 1112 Core 254 | . 254 Absorbed by Shields . | . . Core Remaining (%) 100 | 100 . Volleys Fired 81 | 15 66 Largest 2 | 2 2 Hottest 110 | 40 110 Shots Fired 148 | 30 118 Gun 133 | 30 103 Cannon 15 | . 15 Launcher . | . . Special . | . . Kinetic 102 | 30 72 Thermal 46 | . 46 Explosive . | . . Electromagnetic . | . . Robot Hit Streak 16 | 5 16 Robot Miss Streak 4 | 4 3 Penetration Max . | . . Secondary Targets 2 | . 2 Max Gunslinging Chain 1 | . 1 Shots Hit Robots 96 | 17 79 Core Hits 33 | 5 28 Critical Kills . | . . Critical Parts Destroyed 1 | . 1 Critical Strikes 6 | . 6 Burn 5 | . 5 Destroy 1 | . 1 Melee Attacks . | . . Impact . | . . Slashing . | . . Piercing . | . . Sneak Attacks . | . . Combat Hostiles . | . . Follow-up Attacks . | . . Damage Inflicted 1262 | 208 1054 Guns 1106 | 204 902 Cannons 142 | . 142 Explosions . | . . Melee . | . . Ramming 14 | 4 10 Kinetic 813 | 204 609 Thermal 435 | . 435 Explosive . | . . Electromagnetic . | . . Impact . | . . Slashing . | . . Piercing . | . . Highest Corruption . | . . Average Corruption . | . . Corruption Purged . | . . Corruption Blocked . | . . Overload Shots . | . . Overflow Damage . | . . Projectiles . | . . Explosions . | . . Melee . | . . Knockbacks . | . . Impact . | . . Kinetic . | . . Secondary . | . . Self-Inflicted Damage . | . . Shots . | . . Rammed 5 | 3 2 Targets Rammed 7 | 4 3 Kicked . | . . Crushed 2 | 1 1 Highest Temperature 267 | . 267 Average Temperature 117 | . 117 Received Heat Transfer 408 | . 408 Effects 2 | . 2 Energy Bleed 2 | . 2 Siege Activations . | . . Robots Corrupted . | . . Combat Hostiles . | . . Parts Fried . | . . Impact Corruptions . | . . Robots Melted . | . . Combat Hostiles . | . . Parts Melted 5 | . 5 Heat Transferred 1517 | . 1517 Parts Sabotaged . | . . Parts Stolen . | . . Parts Stripped . | . . Power Chain Reactions . | . . Alert | -11 -10 ------- Run | Yrd Mat Peak Influence 248 | 25 248 Initial 16 | . 16 Average 85 | 8 111 Maximum Alert Level 1 | . 1 Low Security (%) 85 | 100 80 Level 1 14 | . 19 Level 2 . | . . Level 3 . | . . Level 4 . | . . Level 5 . | . . High Security . | . . Max Security . | . . Squads Dispatched 4 | . 4 Investigation 3 | . 3 Extermination . | . . Reinforcement 1 | . 1 Assault . | . . Garrison . | . . Intercept . | . . Searches Triggered . | . . Construction Impeded . | . . Haulers Reinforced . | . . Active Scanning Responses . | . . Cargo Convoy Interrupts . | . . Stealth | -11 -10 --------- Run | Yrd Mat Distress Signals . | . . Communications Jammed . | . . Distress Signals . | . . Times Spotted 19 | . 19 Peak Tracking Total 6 | . 6 Tactical Retreats . | . . Traps | -11 -10 ------- Run | Yrd Mat Traps Triggered 1 | . 1 Indirectly . | . . Trap Hack Attempts . | . . Triggered . | . . Disarmed . | . . Reprogrammed . | . . Reused . | . . Traps Extracted . | . . Installed . | . . Triggered . | . . Machines | -11 -10 ---------- Run | Yrd Mat Machines Disabled . | . . Max in Single Turn . | . . Machines Repaired . | . . Machines Dismantled . | . . Machines Sabotaged . | . . Overloaded Fab Kills . | . . Hacking | -11 -10 --------- Run | Yrd Mat Machines Accessed 4 | . 4 Terminals 4 | . 4 Fabricators . | . . Repair Stations . | . . Recycling Units . | . . Scanalyzers . | . . Garrison Access . | . . Total Hacks 14 | . 14 Successful 3 | . 3 Failed 10 | . 10 Catastrophic 1 | . 1 Database Lockouts 1 | . 1 Manual 8 | . 8 Terminals 14 | . 14 Fabricators . | . . Repair Stations . | . . Recycling Units . | . . Scanalyzers . | . . Garrison Access . | . . Terminal Hacks 3 | . 3 Robot Analysis 1 | . 1 Terminal Index 1 | . 1 Hauler Manifests 1 | . 1 Fabricator Hacks . | . . Repair Station Hacks . | . . Recycling Unit Hacks . | . . Scanalyzer . | . . Garrison Access Hacks . | . . Unauthorized Hacks . | . . Terminals . | . . Fabricators . | . . Repair Stations . | . . Recycling Units . | . . Scanalyzers . | . . Garrison Access . | . . Data Cores Recovered . | . . Used . | . . Hacking Detections 4 | . 4 Full Trace Events 2 | . 2 Feedback Events . | . . Feedback Blocked . | . . Robot Schematics Acquired . | . . Robots Built . | . . Authchips . | . . Time . | . . Total Robot Build Rating . | . . Part Schematics Acquired . | . . Parts Built . | . . Authchips . | . . Time . | . . Total Part Build Rating . | . . Parts Repaired . | . . Time . | . . Parts Recycled . | . . Recycled Matter . | . . Retrieved Matter . | . . Retrieved Components . | . . Parts Scanalyzed . | . . Part Schematics Acquired . | . . Parts Damaged . | . . Bothacking | -11 -10 ------------ Run | Yrd Mat Used RIF Installer . | . . Robots Hacked . | . . Non-combat . | . . Combat . | . . Robot Hacks Applied . | . . Relay Couplers Released . | . . Fabnet Peak Effective % . | . . Robots Rewired . | . . Allies Hacked . | . . Hacks Repelled . | . . Allies | -11 -10 -------- Run | Yrd Mat Total Allies . | . . Largest Group . | . . Highest-Rated Group . | . . Highest-Rated Ally . | . . Total Orders . | . . Ally Attacks . | . . Total Damage . | . . Kills . | . . Allies Corrupted . | . . Allies Melted . | . . Intel | -11 -10 ------- Run | Yrd Mat Robot Analysis Total 1 | . 1 Derelict Logs Recovered . | . . Drone Launches . | . . Drone Recoveries . | . . Exploration | -11 -10 ------------- Run | Yrd Mat Turns Passed 842 | 214 628 Spaces Moved 341 | 95 246 Core 9 | 9 . Treads 326 | 86 240 Legs . | . . Wheels 6 | . 6 Hover . | . . Flight . | . . Fastest Speed 50 | 50 95 Average Speed 157 | 154 158 Slowest Speed 160 | 160 160 Overloaded Moves . | . . Propulsion Burnouts . | . . Robots Hopped . | . . Cave-ins Triggered . | . . Exploration Rate (%) 23 | 6 40 Regions Visited 1 Branch Regions . Pre-discovered Areas . | . . Known Exits Taken . | . . Unknown Exits Taken 1 | 1 . Scrap Searched . | . . Spaces Dug . | . . Terrain Destroyed . | . . Melee . | . . Projectile . | . . AOE . | . . Terrain Rammed . | . . Walls Destroyed . | . . Machines Disabled . | . . Actions | -11 -10 --------- Run | Yrd Mat Total 491 | 126 365 Wait 39 | . 39 Move 340 | 94 246 Hop . | . . Pick Up 10 | 6 4 Fast Attach 8 | 7 1 Attach 3 | . 3 Detach . | . . Swap 1 | . 1 Drop 2 | . 2 Fire 81 | 15 66 Melee . | . . Ram . | . . Kick . | . . Crush 7 | 4 3 Escape Stasis . | . . Rewire . | . . Trap . | . . Miscellaneous . | . . Route ------- -11/Scrapyard -10/Materials (discovered 1 exit: [*Mat]) History --------- Turn | Location | Event 27 | -11/Scrapyard | Discovered new exit (range 14) 215 | -11/Scrapyard | Entered Materials 311 | -10/Materials | Build established: Mutant 698 | -10/Materials | Discovered new exit (range 15) 765 | -10/Materials | Central database locked down 817 | -10/Materials | Core integrity fell below 50% 838 | -10/Materials | Core integrity fell below 20% 843 | -10/Materials | Destroyed by S-10 Pest with Light Assault Rifle Last Messages --------------- 00806_ G-34 Mercenary suffers critical hit (Burn). 00806_ Sml. Laser melted. 00806_ Heat Sink melted. 00806_ G-34 Mercenary destroyed. 00807_ R-06 Scavenger collects Aluminum Leg. 00808_ Lgt. Treads destroyed. 00810_ R-06 Scavenger collects Heat Sink. 00810_ G-34 Mercenary suffers critical hit (Burn). 00812_ Lgt. Ion Engine destroyed. 00815_ G-34 Mercenary heat damages Aluminum Leg. 00816_ Ion Engine melted. 00816_ Heat Sink melted. 00816_ G-34 Mercenary destroyed. 00820_ R-06 Scavenger collects Ion Engine. 00822_ Acquired 10 matter. 00826_ S-10 Pest suffers critical hit (Burn). 00826_ S-10 Pest destroyed. 00828_ S-10 Pest suffers critical hit (Burn). 00834_ Med. Laser destroyed. 00835_ K-01 Serf collects debris. Map ----- +----------------------------------------------------+ | ??????????????????????????????????????????????? | | ??????????????????????????????????????????????? | | ??????????????????????????????????????????????? | | ??????????????????????????????????????????????? | | ?????????????????????????"????????????????????? | | ?????????????????????????"????????????????????? | | ????????????????????????? ????????????????????? | | ????????????????????????? ????????????????????? | | ?????????????????????####/????????????????????? | | ?????????????????????# ????????????????????? | | ?????????????????????# ????????????????????? | | ?????????????????????# ????????????????????? | | ?????????????????????# #????????????????????? | | ?????????????????????# #????????????????????? | | ?????????????????????# #????????????????????? | | ?????????????????????+ #????????????????????? | | ?????????????????????# #????????????????????? | | ?????????????????????# %=#????????????????????? | | ??????????????#?????##%=%##???????????????????? | | ??????????# ### ##### = ##################### | | ??????????# | | ??????????# | | ??????????? k | | ??????????? #### %% ##########+########## | | ???????????+## ??#####s#####??# T #????? | | ?????????????#????# @u[ #??# #????? | | ??????????????????# #??# #????? | | ??????????????????#s #??# #????? | | ????????????????? + #??# #????? | | ??????????????? ## /!! #??# """ """ #????? | | ??????????????##??#s /!! #??# """ """ #????? | | ??????????????????# !! #??# """ """ #????? | | ??????????????????/s #??#+#########????? | | ?????????????????#####+######??# #????????????? | | ?????????????????????# #???????# #????????????? | | ?#########???????????# #?????###+###??????????? | | # #???????????# #?????# #??????????? | | # """ #?????????### ###???# #??????????? | | # "Y = ########### #???#!% #??????????? | | # """ # ##### """ #??????????? | | # +% % / """ #??????????? | | # """ #% ### # """ #??????????? | | # """ # ####### = #?# #%""" #??????????? | | ? """ # #????####+##### # """ #??????????? | | ?? # #????# % ## # #??????????? | | ?######### #????# """ ## # #??????????? | | ?????????# #????# "Y" ## # #??????????? | | ?????????# ## ??# ## # #######????? | | ?????????# ## ########## ###+### #????? | | ?????????# ## #????? | +----------------------------------------------------+ Best States ------------- Heat Dissipation 39 Energy Generation 10 Energy Capacity 125 Matter Stores 300 Matter Capacity 300 Sight Range 16 Terrain Scan Density 10 Evasion (%) 40 Recoil Reduction 2 Item Schematics ----------------- None Robot Schematics ------------------ None Fabricated ------------ Nothing Alien Tech Used ----------------- None Achievements -------------- None Challenges ------------ None Game ------ Seed GaussAlphaDerivative Manual? 0 Play Time 00:05:28 Cumulative 671.1 hours Start 2024.08.11 @ 12:52:09 End 2024.08.11 @ 13:04:28 Sessions 1 Manual Loads 0 Difficulty Rogue Special Mode None Game No. 597 Rogue 382 Adventurer 112 Explorer 103 Win Type - Total 43 Types 27/0/8/3/0/0/4/1/0 Lore% 70 Gallery% 87 Achievement% 82 Wizard Run 0 Options --------- Layout 0 ASCII 0 Keyboard 1 Movement Vi Keybinds 1 Fullscreen 2 Font 20/Terminus Map View 72x56 Zoom Use 0% Tactical HUD 1 Map Filters NONE Filters NONE Steam 0 RUN: 87341d8a-23d1-4514-85e4-4fee7d4ff095